bitfinex-derivatives/quotes_BTCF0:USTF0_20250127
["timestamp","ask_amount","ask_price","bid_price","bid_amount"]
[1737982185442,0.0378,99877.0,99869.0,0.561153]
[1737982185645,0.0378,99877.0,99869.0,0.3608]
[1737982185847,0.10504274,99870.0,99869.0,0.561153]
[1737982186557,0.10604274,99870.0,99869.0,0.561153]
[1737982187260,0.10604274,99870.0,99869.0,0.921953]
[1737982187765,0.10604274,99870.0,99869.0,0.93271848]
[1737982189150,0.00114998,99870.0,99869.0,0.93271848]
[1737982189555,0.0384,99885.0,99870.0,0.20035]
[1737982189863,0.0384,99885.0,99884.0,0.3608]
[1737982190365,0.10509264,99885.0,99884.0,0.561123]
[1737982190654,0.00014998,99890.0,99884.0,0.3608]
[1737982190853,0.00014998,99890.0,99889.0,0.200313]
[1737982191357,0.10452615,99890.0,99889.0,0.200313]
[1737982192259,0.10452615,99890.0,99889.0,0.21129668]
[1737982194654,0.10452615,99890.0,99889.0,0.01098368]
[1737982194960,0.10452615,99890.0,99887.0,0.3608]
[1737982195458,0.10452615,99890.0,99887.0,0.37183854]
[1737982196159,0.10552615,99890.0,99887.0,0.37183854]
[1737982196359,0.10552615,99890.0,99887.0,0.57215554]
[1737982196556,0.10552615,99890.0,99889.0,0.200313]
[1737982197561,0.10652615,99890.0,99889.0,0.200313]
[1737982198155,0.10552615,99890.0,99889.0,0.200313]
[1737982198355,0.10652615,99890.0,99889.0,0.200313]
[1737982200460,0.10652615,99890.0,99885.0,0.01218998]
[1737982201756,0.10552615,99890.0,99885.0,0.01218998]
[1737982201961,0.10652615,99890.0,99885.0,0.01218998]
[1737982202156,0.10652615,99890.0,99870.0,0.00014998]
[1737982202157,0.3608,99886.0,99870.0,0.00014998]
[1737982202356,0.200346,99872.0,99864.0,0.01218998]
[1737982202562,0.0362,99871.0,99864.0,0.01218998]
[1737982202859,0.1405401,99871.0,99864.0,0.01218998]
[1737982203061,0.0362,99871.0,99864.0,0.01218998]
[1737982203262,0.1043401,99870.0,99864.0,0.01218998]
[1737982203462,0.200359,99866.0,99864.0,0.01218998]
[1737982203765,0.1043401,99870.0,99864.0,0.01218998]
[1737982203958,0.10546719,99865.0,99864.0,0.01218998]
[1737982204158,0.10546719,99870.0,99864.0,0.01218998]
[1737982204361,0.0362,99871.0,99864.0,0.01218998]
[1737982204667,0.10426569,99870.0,99864.0,0.01218998]
[1737982204965,0.10426569,99870.0,99864.0,0.37298998]
[1737982205160,0.10426569,99870.0,99866.0,0.200358]
[1737982205467,0.10426569,99870.0,99868.0,0.200353]
[1737982205960,0.10426569,99870.0,99860.0,0.00014998]
[1737982206164,0.200363,99864.0,99860.0,0.00014998]
[1737982206362,0.0748,99863.0,99860.0,0.00014998]
[1737982206559,0.18488258,99863.0,99860.0,0.00014998]
[1737982206761,0.0378,99863.0,99860.0,0.00014998]
[1737982206957,0.0362,99871.0,99860.0,0.36094998]
[1737982207159,0.0362,99871.0,99870.0,0.3608]
[1737982207470,0.15134127,99871.0,99870.0,0.3608]
[1737982209467,0.11514127,99871.0,99870.0,0.3608]
[1737982209671,0.11514127,99871.0,99870.0,0.37163027]
[1737982209969,0.11587436,99880.0,99870.0,0.37163027]
[1737982210167,0.0364,99881.0,99870.0,0.37163027]
[1737982210569,0.11587436,99880.0,99878.0,0.3608]
[1737982211166,0.11587436,99880.0,99870.0,0.37163027]
[1737982212570,0.11787436,99880.0,99878.0,0.3608]
[1737982212978,0.002,99880.0,99878.0,0.3608]
[1737982213168,0.11216267,99879.0,99878.0,0.3608]
[1737982214169,0.002,99880.0,99879.0,0.200332]
[1737982214872,0.001,99880.0,99879.0,0.200332]
[1737982215373,0.00014998,99890.0,99889.0,0.200312]
[1737982215573,0.00014998,99890.0,99889.0,0.561112]
[1737982215780,0.11236942,99890.0,99889.0,0.57330198]
[1737982216874,0.11236942,99890.0,99889.0,0.57430198]
[1737982217178,0.200187,99952.0,99925.0,0.20024]
[1737982217372,0.3608,99986.0,99943.0,0.200204]
[1737982217373,0.0367,99951.0,99943.0,0.200204]
[1737982217669,0.0363,99960.0,99959.0,0.200172]
[1737982217874,0.0746,99974.0,99962.0,0.200165]
[1737982218170,0.0746,99974.0,99959.0,0.7216]
[1737982218171,0.11298004,99966.0,99965.0,0.200159]
[1737982218373,0.11298004,99966.0,99959.0,0.723]
[1737982218673,0.11298004,99966.0,99959.0,0.7216]
[1737982219476,0.11298004,99966.0,99963.0,0.200163]
[1737982219869,0.10687473,99969.0,99964.0,0.200161]
[1737982220069,0.00014998,99970.0,99968.0,0.3608]
[1737982220279,0.00014998,99970.0,99968.0,0.560953]
[1737982220470,0.10687473,99969.0,99968.0,0.560953]
[1737982221077,0.10687473,99969.0,99968.0,0.57314298]
[1737982222075,0.10687473,99969.0,99968.0,0.57414298]
[1737982222980,0.10687473,99969.0,99968.0,0.58500241]
[1737982223866,0.10687473,99969.0,99968.0,0.38484941]
[1737982224070,0.10687473,99969.0,99968.0,0.37398998]
[1737982230085,0.5799,100030.0,99998.0,0.200092]
[1737982230276,0.00900754,100000.0,99999.0,0.73378998]
[1737982230583,0.12097997,100000.0,99999.0,0.73378998]
[1737982230984,0.00900754,100000.0,99999.0,0.73378998]
[1737982231983,0.00900754,100000.0,99999.0,0.74445755]
[1737982232185,0.00900754,100000.0,99999.0,0.74545755]
[1737982233682,0.00900754,100000.0,99999.0,0.74445755]
[1737982233882,0.00900754,100000.0,99999.0,0.74945755]
[1737982235086,0.00635039,100000.0,99999.0,0.74945755]
[1737982235289,0.00265715,100000.0,99999.0,1.03926757]
[1737982235582,1.5e-07,100000.0,99999.0,1.04226757]
[1737982235982,1.5e-07,100000.0,99999.0,1.77226757]
[1737982236280,0.200013,100040.0,100020.0,0.20003]
[1737982236485,0.200013,100040.0,100030.0,0.56083]
[1737982236687,0.30691541,100040.0,100030.0,0.56083]
[1737982236984,0.10690241,100040.0,100030.0,0.56083]
[1737982238671,0.00014998,100050.0,100040.0,0.20001]
[1737982238885,0.00014998,100050.0,100040.0,0.56081]
[1737982239072,0.10519127,100050.0,100040.0,0.56081]
[1737982240182,0.00014998,100050.0,100040.0,0.56081]
[1737982241183,0.00014998,100050.0,100040.0,0.3608]
[1737982241676,0.00014998,100050.0,100040.0,0.37137041]
[1737982241677,0.10794487,100050.0,100040.0,0.37137041]
[1737982241873,0.30793387,100050.0,100040.0,0.01057041]
[1737982242077,0.30793387,100050.0,100040.0,0.3608]
[1737982242078,0.10794487,100050.0,100040.0,0.3608]
[1737982243281,0.00014998,100050.0,100040.0,0.560809]
[1737982244292,0.00014998,100050.0,100040.0,0.3608]
[1737982244792,0.11450738,100050.0,100040.0,0.3608]
[1737982246186,0.11450738,100050.0,100030.0,0.37151938]
[1737982246187,0.200009,100040.0,100030.0,0.37151938]
[1737982246386,0.0382,100040.0,100030.0,0.37151938]
[1737982246593,0.34569371,100040.0,100030.0,0.37151938]
[1737982246782,0.14568471,100040.0,100030.0,0.37151938]
[1737982248688,0.34569371,100040.0,100030.0,0.37151938]
[1737982249290,0.14568471,100040.0,100030.0,0.37151938]
[1737982249792,0.18428471,100040.0,100030.0,0.37151938]
[1737982250097,0.22448471,100040.0,100030.0,0.37151938]
[1737982250296,0.42449371,100040.0,100030.0,0.37151938]
[1737982250493,0.22448471,100040.0,100030.0,0.37151938]
[1737982250693,0.42449371,100040.0,100030.0,0.37151938]
[1737982253591,0.22448471,100040.0,100030.0,0.37151938]
[1737982254396,0.25447271,100040.0,100030.0,0.37151938]
[1737982254587,0.45448171,100040.0,100030.0,0.37151938]
[1737982255402,0.25447271,100040.0,100030.0,0.37151938]
[1737982256898,0.21587271,100040.0,100030.0,0.57154838]
[1737982257087,0.17767271,100040.0,100030.0,1.31154838]
[1737982257292,0.029988,100040.0,100030.0,1.39124838]
[1737982257891,0.14387955,100040.0,100030.0,1.39124838]
[1737982258105,0.14387955,100040.0,100030.0,1.35054838]
[1737982258902,0.14387955,100040.0,100030.0,1.35254838]
[1737982259205,0.14387955,100040.0,100030.0,1.35354838]
[1737982259388,0.029988,100040.0,100030.0,1.35354838]
[1737982260903,0.13404267,100040.0,100030.0,1.15351938]
[1737982261202,0.33405167,100040.0,100030.0,1.31454838]
[1737982261397,0.41315167,100040.0,100030.0,0.55143461]
[1737982261998,0.41315167,100040.0,100030.0,0.19063461]
[1737982262302,0.57394267,100040.0,100020.0,0.24966694]
[1737982262498,0.601629,100030.0,100020.0,0.23603696]
[1737982262999,0.70636695,100030.0,100020.0,0.23603696]
[1737982264406,0.34556695,100030.0,100020.0,0.23603696]
[1737982264905,0.34556695,100030.0,100020.0,0.23803696]
[1737982265204,0.34556695,100030.0,100020.0,0.00214998]
[1737982266195,0.34556695,100030.0,100020.0,0.36294998]
[1737982266392,0.14553795,100030.0,100020.0,0.36294998]
[1737982266702,0.34556695,100030.0,100020.0,0.36294998]
[1737982266899,0.70636695,100030.0,100020.0,0.00214998]
[1737982268006,0.70636695,100030.0,100000.0,0.37298998]
[1737982268007,0.200055,100020.0,100000.0,0.37298998]
[1737982268202,0.560869,100010.0,100000.0,0.01218998]
[1737982268403,0.641469,100010.0,100000.0,0.01218998]
[1737982268596,0.18493984,100010.0,100000.0,0.37298998]
[1737982268900,0.10433984,100010.0,100000.0,0.57307898]
[1737982269106,0.1209,100030.0,100000.0,0.37298998]
[1737982269303,0.081,100030.0,100020.0,0.3608]
[1737982269494,0.19243751,100030.0,100020.0,0.3608]
[1737982272501,0.19443751,100030.0,100020.0,0.3608]
[1737982274506,0.19343751,100030.0,100020.0,0.3608]
[1737982274904,0.39346651,100030.0,100020.0,0.3608]
[1737982275105,0.39246651,100030.0,100020.0,0.3608]
[1737982275408,0.39246651,100030.0,100010.0,0.03974998]
[1737982275409,0.200049,100020.0,100010.0,0.40054998]
[1737982275607,0.200049,100020.0,100010.0,0.00014998]
[1737982275801,0.85978156,100020.0,99983.0,0.3608]
[1737982276002,0.200099,99995.0,99983.0,0.3608]
[1737982276306,0.38240551,99994.0,99983.0,0.3608]
[1737982276504,0.18230351,99994.0,99983.0,0.3608]
[1737982276810,0.200117,99986.0,99983.0,0.3608]
[1737982277112,0.10410882,99985.0,99983.0,0.3608]
[1737982277407,0.200121,99984.0,99983.0,0.3618]
[1737982277810,0.30422982,99984.0,99983.0,0.3618]
[1737982278511,0.30422982,99984.0,99983.0,0.001]
[1737982279008,0.30422982,99984.0,99983.0,0.004]
[1737982279205,0.66502982,99984.0,99983.0,0.004]
[1737982279607,0.66502982,99984.0,99983.0,0.008]
[1737982280312,0.66502982,99984.0,99983.0,0.006]
[1737982280616,0.66502982,99984.0,99983.0,0.008]
[1737982281114,0.10410882,99984.0,99983.0,0.008]
[1737982281406,0.10630487,99992.0,99983.0,0.008]
[1737982281608,0.200121,99984.0,99983.0,0.008]
[1737982281911,0.10498922,99984.0,99983.0,0.008]
[1737982282305,0.0374,99993.0,99983.0,0.008]
[1737982282306,0.10498922,99989.0,99983.0,0.008]
[1737982282506,0.0374,99993.0,99983.0,0.008]
[1737982282698,0.20011,99990.0,99983.0,0.006]
[1737982282909,0.11171849,99991.0,99983.0,0.005]
[1737982283104,0.200114,99988.0,99983.0,0.005]
[1737982283308,0.0374,99993.0,99983.0,0.005]
[1737982283309,0.200105,99992.0,99983.0,0.005]
[1737982283509,0.11171849,99987.0,99983.0,0.005]
[1737982283711,0.200121,99984.0,99983.0,0.005]
[1737982284003,0.31404152,99984.0,99983.0,0.005]
[1737982284210,0.200143,99973.0,99972.0,0.01218998]
[1737982284514,0.67486352,99973.0,99972.0,0.01218998]
[1737982284711,0.200189,99950.0,99939.0,0.3608]
[1737982284909,0.200189,99950.0,99948.0,0.3608]
[1737982285109,0.10820112,99949.0,99948.0,0.3608]
[1737982286004,0.11362139,99955.0,99948.0,0.3608]
[1737982286201,0.200177,99956.0,99948.0,0.3608]
[1737982286423,0.20018,99955.0,99948.0,0.3678]
[1737982286605,0.11362139,99955.0,99948.0,0.3678]
[1737982286806,0.11362139,99959.0,99948.0,0.3708]
[1737982287006,0.00014998,99960.0,99948.0,0.3708]
[1737982287007,0.11098009,99955.0,99949.0,0.20019]
[1737982287207,0.11098009,99955.0,99948.0,0.3708]
[1737982287407,0.11098009,99959.0,99948.0,0.3708]
[1737982287709,0.200191,99949.0,99948.0,0.009]
[1737982288010,0.11201671,99949.0,99948.0,0.3628]
[1737982288212,0.11201671,99949.0,99948.0,0.006]
[1737982288405,0.11201671,99957.0,99948.0,0.006]
[1737982288912,0.1158291,99957.0,99948.0,0.006]
[1737982289307,0.1158291,99957.0,99948.0,0.005]
[1737982289512,0.1158291,99957.0,99955.0,0.3608]
[1737982290013,0.00014998,99960.0,99955.0,0.3608]
[1737982290014,0.10665118,99959.0,99955.0,0.3608]
[1737982290216,0.00014998,99960.0,99955.0,0.3608]
[1737982290413,0.00014998,99960.0,99948.0,0.004]
[1737982290414,0.10665118,99959.0,99948.0,0.004]
[1737982290719,0.0401,99958.0,99948.0,0.004]
[1737982291016,0.200183,99953.0,99948.0,0.004]
[1737982291311,0.10751996,99952.0,99948.0,0.005]
[1737982291907,0.10751996,99952.0,99948.0,0.001]
[1737982292108,0.200191,99949.0,99948.0,0.004]
[1737982292512,0.11336561,99949.0,99948.0,0.001]
[1737982292711,0.11336561,99949.0,99948.0,0.006]
[1737982292912,0.10769106,99953.0,99948.0,0.006]
[1737982293113,0.200182,99954.0,99948.0,0.006]
[1737982293514,0.10769106,99953.0,99948.0,0.006]
[1737982294016,0.1044536,99957.0,99950.0,0.3608]
[1737982294318,0.00014998,99960.0,99951.0,0.0402]
[1737982294519,0.00014998,99960.0,99959.0,0.3608]
[1737982295022,0.1077507,99960.0,99959.0,0.3608]
[1737982295329,0.1077507,99960.0,99950.0,0.3622]
[1737982295518,0.1077507,99960.0,99950.0,0.3608]
[1737982295714,0.1077507,99960.0,99958.0,0.3608]
[1737982295912,0.1077507,99960.0,99951.0,0.003]
[1737982296315,0.1077507,99960.0,99958.0,0.3608]
[1737982297415,0.1077507,99960.0,99951.0,0.003]
[1737982297619,0.200185,99953.0,99951.0,0.003]
[1737982297820,0.240885,99952.0,99951.0,0.003]
[1737982298021,0.35479141,99952.0,99951.0,0.003]
[1737982298215,0.200187,99951.0,99943.0,0.3608]
[1737982298415,0.15460641,99952.0,99943.0,0.3608]
[1737982298616,0.200201,99944.0,99943.0,0.3608]
[1737982299016,0.30832245,99944.0,99943.0,0.3608]
[1737982299817,0.30832245,99944.0,99943.0,0.3668]
[1737982300022,0.10812145,99944.0,99943.0,0.3668]
[1737982300417,0.11169809,99948.0,99943.0,0.3668]
[1737982300617,0.11169809,99948.0,99943.0,0.3698]
[1737982300823,0.0397,99965.0,99943.0,0.3698]
[1737982300824,0.11169809,99951.0,99943.0,0.3698]
[1737982301022,0.30684476,99954.0,99943.0,0.3698]
[1737982301219,0.200182,99954.0,99943.0,0.3698]
[1737982301630,0.001,99944.0,99943.0,0.3718]
[1737982302127,0.11321751,99944.0,99943.0,0.3718]
[1737982302329,0.31241851,99944.0,99943.0,0.008]
[1737982302830,0.31241851,99944.0,99943.0,0.003]
[1737982303026,0.31341851,99944.0,99943.0,0.011]
[1737982303325,0.11321751,99944.0,99943.0,0.011]
[1737982303729,0.11421751,99944.0,99943.0,0.008]
[1737982304136,0.11421751,99944.0,99943.0,0.3688]
[1737982305030,0.14323431,99944.0,99943.0,0.3608]
[1737982305221,0.34543531,99944.0,99943.0,0.3608]
[1737982305417,0.14523431,99944.0,99943.0,0.3608]
[1737982306026,0.14323431,99944.0,99943.0,0.3608]
[1737982306225,0.14423431,99944.0,99943.0,0.3608]
[1737982307332,0.14323431,99944.0,99943.0,0.3608]
[1737982308235,0.14423431,99944.0,99943.0,0.3608]
[1737982308424,0.0320168,99944.0,99943.0,0.561003]
[1737982308620,1e-08,99944.0,99943.0,0.561003]
[1737982308834,0.00014998,99960.0,99943.0,0.561003]
[1737982309025,0.00014998,99960.0,99956.0,0.3608]
[1737982309224,0.11036803,99959.0,99956.0,0.3307832]
[1737982309420,0.11036803,99959.0,99956.0,0.0379]
[1737982309625,0.20019,99950.0,99944.0,0.0407]
[1737982309829,0.11036803,99959.0,99944.0,0.0407]
[1737982310135,0.10552404,99949.0,99941.0,0.0379]
[1737982310336,0.200176,99957.0,99941.0,0.0379]
[1737982310527,0.10552404,99950.0,99948.0,0.3608]
[1737982310729,0.10552404,99956.0,99948.0,0.3608]
[1737982310928,0.11001101,99958.0,99948.0,0.3608]
[1737982311123,0.001,99959.0,99949.0,0.3608]
[1737982311429,0.11001101,99957.0,99949.0,0.3608]
[1737982311634,0.20018,99955.0,99949.0,0.3608]
[1737982311834,0.001,99959.0,99941.0,0.0379]
[1737982312036,0.001,99950.0,99941.0,0.0379]
[1737982312336,0.11043088,99949.0,99944.0,0.3608]
[1737982312834,0.11043088,99953.0,99944.0,0.3608]
[1737982314637,0.11043088,99953.0,99952.0,0.3608]
[1737982314943,0.20015,99970.0,99952.0,0.3608]
[1737982314944,0.11502611,99958.0,99952.0,0.3608]
[1737982315240,0.0382,99971.0,99952.0,0.3608]
[1737982315241,0.11502611,99959.0,99952.0,0.3608]
[1737982315631,0.20016,99965.0,99952.0,0.3608]
[1737982315938,0.11502611,99959.0,99952.0,0.3608]
[1737982316139,0.200174,99958.0,99942.0,0.3608]
[1737982316438,0.003,99953.0,99942.0,0.3608]
[1737982316838,0.10743084,99952.0,99942.0,0.3608]
[1737982318138,0.10843084,99952.0,99942.0,0.3608]
[1737982320040,0.11043084,99952.0,99942.0,0.3608]
[1737982320741,0.11043084,99952.0,99951.0,0.3608]
[1737982322129,0.10843084,99952.0,99951.0,0.3608]
[1737982322329,0.10943084,99952.0,99951.0,0.3608]
[1737982323035,0.10843084,99952.0,99951.0,0.37421782]
[1737982323536,0.10843084,99952.0,99951.0,0.37121782]
[1737982323739,0.10843084,99952.0,99951.0,0.3628]
[1737982324446,0.10743084,99952.0,99951.0,0.3638]
[1737982324833,0.11083327,99959.0,99951.0,0.003]
[1737982325039,0.200174,99958.0,99951.0,0.003]
[1737982325236,0.0383,99957.0,99951.0,0.003]
[1737982325433,0.001,99952.0,99951.0,0.001]
[1737982325833,0.11429136,99952.0,99951.0,0.001]
[1737982326042,0.11329136,99952.0,99951.0,0.001]
[1737982326243,0.11429136,99952.0,99942.0,0.3608]
[1737982326444,0.001,99952.0,99942.0,0.3608]
[1737982326643,0.10823466,99951.0,99942.0,0.3608]
[1737982327151,0.10823466,99951.0,99942.0,0.561004]
[1737982328047,0.10823466,99951.0,99942.0,0.3608]
[1737982329247,0.0386,99950.0,99942.0,0.3608]
[1737982329644,0.11529818,99949.0,99942.0,0.3608]
[1737982330153,0.200193,99948.0,99942.0,0.3608]
[1737982330352,0.200207,99941.0,99940.0,0.00014998]
[1737982330642,0.31317736,99941.0,99940.0,0.00014998]
[1737982330847,0.11297036,99941.0,99940.0,0.00014998]
[1737982331242,0.11587508,99945.0,99940.0,0.00014998]
[1737982331438,0.001,99949.0,99940.0,0.00014998]
[1737982331649,0.001,99949.0,99948.0,0.3608]
[1737982331951,0.11508337,99949.0,99948.0,0.3608]
[1737982332848,0.11408337,99949.0,99948.0,0.3608]
[1737982333352,0.0382,99961.0,99948.0,0.3608]
[1737982333647,0.001,99949.0,99948.0,0.3608]
[1737982334038,0.10516091,99949.0,99948.0,0.3608]
[1737982336844,0.10416091,99949.0,99948.0,0.3608]
[1737982337242,0.200191,99949.0,99948.0,0.3608]
[1737982337443,0.11450932,99959.0,99940.0,0.36094998]
[1737982337645,0.11550932,99949.0,99940.0,0.36094998]
[1737982337951,0.001,99949.0,99940.0,0.36094998]
[1737982338152,0.10720579,99948.0,99940.0,0.36094998]
[1737982339249,0.30739979,99948.0,99940.0,0.36094998]
[1737982339447,0.200198,99946.0,99940.0,0.36094998]
[1737982339642,0.0402,99945.0,99940.0,0.36094998]
[1737982339842,0.14952,99945.0,99940.0,0.00014998]
[1737982340242,0.0402,99945.0,99940.0,0.00014998]
[1737982340443,0.11119561,99944.0,99940.0,0.00014998]
[1737982341744,0.11544879,99949.0,99940.0,0.00014998]
[1737982342147,0.3608,99950.0,99940.0,0.00014998]
[1737982342348,0.11339036,99949.0,99940.0,0.00014998]
[1737982342748,0.200196,99947.0,99940.0,0.00014998]
[1737982343048,0.3608,99950.0,99940.0,0.00014998]
[1737982343254,0.15094859,99946.0,99940.0,0.00014998]
[1737982343453,0.200204,99943.0,99940.0,0.00014998]
[1737982343951,0.11094859,99942.0,99940.0,0.00014998]
[1737982344156,0.31115359,99942.0,99940.0,0.00014998]
[1737982344450,0.200205,99942.0,99940.0,0.00014998]
[1737982344747,0.1113679,99941.0,99940.0,0.00014998]
[1737982345243,0.003681,100760.0,99940.0,0.00014998]
[1737982345244,0.3608,99970.0,99940.0,0.36094998]
[1737982345446,0.200185,99952.0,99951.0,0.3608]
[1737982345847,0.30982146,99952.0,99951.0,0.3608]
[1737982346046,0.30982146,99952.0,99940.0,0.3618]
[1737982346047,0.200207,99941.0,99940.0,0.3618]
[1737982346246,0.200207,99941.0,99940.0,0.3608]
[1737982346555,0.31436522,99941.0,99940.0,0.3618]
[1737982346759,0.67516522,99941.0,99940.0,0.001]
[1737982346955,0.200227,99931.0,99930.0,0.00014998]
[1737982347451,0.30552341,99931.0,99930.0,0.00014998]
[1737982348555,0.10529641,99931.0,99930.0,0.00014998]
[1737982348751,0.11559647,99931.0,99923.0,0.3608]
[1737982348955,0.200241,99924.0,99923.0,0.3608]
[1737982349351,0.30597917,99924.0,99923.0,0.3608]
[1737982349950,0.10573817,99924.0,99923.0,0.3608]
[1737982350158,0.10573817,99924.0,99923.0,0.3658]
[1737982350348,0.10898085,99929.0,99923.0,0.3658]
[1737982350549,0.20024,99925.0,99923.0,0.3658]
[1737982350952,0.10898085,99924.0,99923.0,0.3658]
[1737982351458,0.01052586,99930.0,99923.0,0.3658]
[1737982351663,0.11089448,99928.0,99924.0,0.3608]
[1737982351957,0.11089448,99929.0,99924.0,0.3608]
[1737982352153,0.01052586,99930.0,99924.0,0.3608]
[1737982352452,0.11501741,99929.0,99924.0,0.3608]
[1737982352654,0.11501741,99929.0,99926.0,0.200236]
[1737982352856,0.11501741,99929.0,99927.0,0.239235]
[1737982353054,0.01327905,99929.0,99927.0,0.239235]
[1737982353258,0.01327905,99929.0,99927.0,0.039]
[1737982353957,0.03002161,99928.0,99927.0,0.039]
[1737982354356,0.14503006,99928.0,99927.0,0.039]
[1737982354955,0.00014998,99930.0,99928.0,0.200233]
[1737982355263,0.1432,99952.0,99941.0,0.200207]
[1737982355454,0.1432,99952.0,99927.0,0.039]
[1737982355455,0.1432,99952.0,99951.0,0.7216]
[1737982355859,0.25792587,99952.0,99951.0,0.7216]
[1737982356654,0.11572587,99952.0,99951.0,0.7216]
[1737982357170,0.11472587,99952.0,99951.0,0.7216]
[1737982357459,0.001,99952.0,99951.0,0.7216]
[1737982357864,0.11224736,99952.0,99951.0,0.7216]
[1737982359263,0.14226176,99952.0,99951.0,0.7216]
[1737982361257,0.0310144,99952.0,99951.0,0.7216]
[1737982361569,0.00014998,99960.0,99959.0,0.200171]
[1737982361864,0.10931255,99960.0,99959.0,0.3608]
[1737982362060,0.10931255,99960.0,99959.0,0.560971]
[1737982362854,0.11431255,99960.0,99959.0,0.560971]
[1737982363459,0.200114,99988.0,99961.0,0.200165]
[1737982363655,0.0397,99994.0,99987.0,0.7216]
[1737982363966,0.10561026,99988.0,99987.0,0.7216]
[1737982364262,0.39633864,100010.0,99987.0,0.7216]
[1737982364467,0.39633864,100010.0,100000.0,0.3608]
[1737982364664,0.28776085,100010.0,100000.0,0.3608]
[1737982364967,0.35618862,100010.0,100000.0,0.3608]
[1737982367057,0.14562777,100010.0,100000.0,0.3618]
[1737982367665,0.10872777,100010.0,100000.0,0.3618]
[1737982368269,0.00014998,100010.0,100000.0,0.36161489]
[1737982368569,0.10425596,100010.0,100000.0,0.36161489]
[1737982368870,0.10425596,100010.0,100000.0,0.37211578]
[1737982369470,0.10425596,100010.0,100000.0,0.37111578]
[1737982371373,0.23,100040.0,100010.0,0.200057]
[1737982371576,0.23,100040.0,100030.0,0.7216]
[1737982371766,0.33433942,100040.0,100030.0,0.7216]
[1737982372771,0.33533942,100040.0,100030.0,0.7216]
[1737982373872,0.33433942,100040.0,100030.0,0.7216]
[1737982374075,0.33533942,100040.0,100030.0,0.7216]
[1737982374465,0.33533942,100040.0,100030.0,0.3608]
[1737982374868,0.37823942,100040.0,100030.0,0.3608]
[1737982375263,0.200029,100030.0,100020.0,0.36094998]
[1737982375470,0.200029,100030.0,100020.0,0.00014998]
[1737982375768,0.200069,100010.0,100000.0,0.3608]
[1737982376168,0.34984777,100010.0,100000.0,0.3608]
[1737982377180,0.34984777,100010.0,100000.0,0.3678]
[1737982377474,0.49060777,100010.0,100000.0,0.3678]
[1737982377675,0.49060777,100010.0,100000.0,0.3608]
[1737982377879,0.29053877,100010.0,100000.0,0.3608]
[1737982378272,0.49060777,100010.0,100000.0,0.3608]
[1737982379579,0.24763877,100010.0,100000.0,0.3608]
[1737982380073,0.10687877,100010.0,100000.0,0.3608]
[1737982380273,0.10687877,100010.0,100000.0,0.4006]
[1737982381479,0.10687877,100010.0,100000.0,0.41106691]
[1737982382583,0.00014998,100020.0,100010.0,0.200069]
[1737982382772,0.00014998,100020.0,100010.0,0.560869]
[1737982382967,0.11455197,100020.0,100010.0,0.560869]
[1737982383678,0.00014998,100020.0,100010.0,0.560869]
[1737982384278,0.00014998,100020.0,100010.0,0.564869]
[1737982384673,0.00014998,100020.0,100010.0,0.565869]
[1737982385074,0.10529553,100020.0,100010.0,0.565869]
[1737982385670,0.10529553,100020.0,100010.0,0.57632461]
[1737982385882,0.30534453,100020.0,100010.0,0.37625561]
[1737982386377,0.30634453,100020.0,100010.0,0.37225561]
[1737982387780,0.30634453,100020.0,100010.0,0.37125561]
[1737982388377,0.34884453,100020.0,100010.0,0.37125561]
[1737982388769,0.14879553,100020.0,100010.0,0.37125561]
[1737982390486,0.10629553,100020.0,100010.0,0.57132461]
[1737982390679,0.10529553,100020.0,100010.0,0.57132461]
[1737982390877,0.10529553,100020.0,100010.0,0.57232461]
[1737982391780,0.10529553,100020.0,100010.0,0.57332461]
[1737982392677,0.029988,100040.0,100010.0,0.37325561]
[1737982392986,0.14156905,100040.0,100030.0,0.921629]
[1737982394181,0.029988,100040.0,100030.0,0.921629]
[1737982394374,0.030988,100040.0,100030.0,0.921629]
[1737982394578,0.030988,100040.0,100030.0,0.93168014]
[1737982394778,0.030988,100040.0,100030.0,0.93268014]
[1737982395882,0.030988,100040.0,100030.0,0.97208014]
[1737982396083,0.029988,100040.0,100030.0,0.97408014]
[1737982396285,0.00014998,100050.0,100040.0,0.200009]
[1737982396479,0.00014998,100050.0,100040.0,0.560809]
[1737982396682,0.199953,100070.0,100040.0,0.771601]
[1737982396888,0.199929,100080.0,100070.0,0.199943]
[1737982397088,0.199929,100080.0,100070.0,0.600143]
[1737982397288,0.30518369,100080.0,100070.0,0.600143]
[1737982397590,0.30518369,100080.0,100070.0,0.600149]
[1737982397788,0.30518369,100080.0,100070.0,0.4002]
[1737982398478,0.30518369,100080.0,100070.0,0.3608]
[1737982398893,0.34598369,100080.0,100070.0,0.3608]
[1737982399788,0.35625478,100080.0,100070.0,0.3608]
[1737982399984,0.34598369,100080.0,100070.0,0.3618]
[1737982400884,0.34598369,100080.0,100070.0,0.001]
[1737982401285,0.34598369,100080.0,100070.0,0.3618]
[1737982402093,0.14605469,100080.0,100070.0,0.3618]
[1737982402395,0.10525469,100080.0,100070.0,0.3618]
[1737982402595,0.1352307,100080.0,100070.0,0.3618]
[1737982404297,0.1352307,100080.0,100070.0,0.37192289]
[1737982404497,0.1352307,100080.0,100070.0,0.37092289]
[1737982405386,0.1352307,100080.0,100070.0,0.40992289]
[1737982405596,0.1352307,100080.0,100070.0,0.60987189]
[1737982406901,0.1352307,100080.0,100070.0,0.61187189]
[1737982407599,0.02997601,100080.0,100070.0,0.61187189]
[1737982408192,0.14245714,100080.0,100070.0,0.61187189]
[1737982409200,0.17243315,100080.0,100070.0,0.61187189]
[1737982410800,0.05995202,100080.0,100070.0,0.61187189]
[1737982410996,0.05995202,100080.0,100070.0,0.61287189]
[1737982411600,0.37449395,100080.0,100070.0,0.37392289]
[1737982411797,0.45309395,100080.0,100070.0,0.3638]
[1737982411997,0.41379395,100080.0,100070.0,0.3638]
[1737982412597,0.17456495,100080.0,100070.0,0.563749]
[1737982412899,0.17456495,100080.0,100070.0,0.560749]
[1737982413100,0.05995202,100080.0,100070.0,0.3608]
[1737982413307,0.37458252,100080.0,100070.0,0.3608]
[1737982415103,0.17465352,100080.0,100070.0,0.3608]
[1737982415305,0.37458252,100080.0,100070.0,0.3608]